bitfinex/quotes_SOLUSD_20250617
["timestamp","ask_amount","ask_price","bid_price","bid_amount"]
[1750137380496,27.04,153.16,153.15,6.55936528]
[1750137380696,6.55936528,153.19,153.14,6.55936528]
[1750137380892,27.02,153.18,153.14,6.55936528]
[1750137381102,27.02,153.18,153.12,6.53070359]
[1750137381103,6.55936528,153.15,153.08,21.77883822]
[1750137381293,6.55936528,153.13,153.08,34.87069754]
[1750137381504,27.02,153.14,153.09,6.55936528]
[1750137381706,6.55936528,153.13,153.08,28.3382035]
[1750137382012,6.55936528,153.13,153.08,34.87053844]
[1750137382219,6.55936528,153.13,153.09,6.55936528]
[1750137382398,6.55936528,153.13,153.08,60.87053844]
[1750137382590,33.54997656,153.14,153.08,21.77883822]
[1750137382591,6.55936528,153.09,153.08,21.77883822]
[1750137382895,27.1,153.09,153.03,26.0]
[1750137383093,6.55936528,153.08,153.04,6.55936528]
[1750137383285,27.1,153.09,153.04,13.09360469]
[1750137383489,12.47122266,153.12,153.04,13.09360469]
[1750137383490,5.94,153.12,153.08,6.55936528]
[1750137383691,5.94,153.12,153.07,19.07613357]
[1750137383914,12.49936528,153.12,153.08,6.55936528]
[1750137384091,12.49936528,153.12,153.09,6.55936528]
[1750137384092,5.94,153.12,153.09,6.55936528]
[1750137384999,5.94,153.12,153.07,19.07613357]
[1750137385315,5.94,153.12,153.06,26.0]
[1750137385316,12.49936528,153.12,153.08,6.55936528]
[1750137385698,12.49936528,153.12,153.06,26.0]
[1750137385699,6.55936528,153.11,153.06,26.0]
[1750137386019,6.55936528,153.11,153.06,32.55936528]
[1750137386216,12.47087209,153.12,153.06,26.0]
[1750137386393,6.55936528,153.09,153.06,26.0]
[1750137386593,6.55936528,153.1,153.06,26.0]
[1750137387003,27.1,153.09,153.01,18.64964886]
[1750137387206,6.55936528,153.05,153.01,18.64964886]
[1750137387523,6.55936528,153.05,153.01,31.744307]
[1750137387696,37.71875996,153.09,153.02,6.55936528]
[1750137387697,6.55936528,153.06,153.02,6.55936528]
[1750137387896,44.25096929,153.09,153.02,6.55936528]
[1750137387897,6.55936528,153.07,153.02,6.55936528]
[1750137388209,6.55936528,153.06,153.02,6.55936528]
[1750137389121,9.86639789,153.06,153.02,9.86639789]
[1750137389326,9.86639789,153.07,153.02,9.86639789]
[1750137389623,9.86639789,153.07,153.03,9.86639789]
[1750137390220,9.86639789,153.08,153.02,0.42648471]
[1750137390418,9.86639789,153.08,153.03,9.86639789]
[1750137390999,9.86639789,153.08,153.03,28.51604675]
[1750137391200,9.86639789,153.06,153.02,16.8275504]
[1750137391626,9.86639789,153.07,153.02,16.8275504]
[1750137392116,9.86639789,153.08,153.03,9.86639789]
[1750137392419,9.86639789,153.07,153.03,9.86639789]
[1750137392611,44.25094276,153.09,153.02,16.8275504]
[1750137392794,9.86639789,153.06,153.02,16.8275504]
[1750137392994,44.25094276,153.09,153.0,54.51604675]
[1750137392995,9.86639789,153.05,153.0,54.51604675]
[1750137393194,36.98639789,153.05,153.0,35.86639789]
[1750137393604,27.12,153.05,153.01,9.86639789]
[1750137394733,27.12,153.05,153.02,9.86639789]
[1750137394900,27.12,153.05,153.03,9.86639789]
[1750137395299,27.12,153.05,153.02,9.86639789]
[1750137396212,10.61875996,153.09,153.04,9.86639789]
[1750137396411,10.61875996,153.09,153.07,9.86639789]
[1750137396610,10.61875996,153.09,153.03,44.64964886]
[1750137396611,36.96639789,153.08,153.03,26.0]
[1750137396802,9.86639789,153.07,153.03,26.0]
[1750137397130,9.86639789,153.05,153.0,0.14216157]
[1750137397331,9.86639789,153.04,153.01,26.0]
[1750137398005,36.98639789,153.04,153.01,26.0]
[1750137399021,43.52064577,153.04,152.99,6.96277453]
[1750137399217,43.52064577,153.04,152.99,36.2928826]
[1750137399606,36.98639789,153.04,152.99,42.82914069]
[1750137400300,43.52068233,153.04,152.97,6.4916]
[1750137400640,9.86639789,153.0,152.97,18.64964886]
[1750137400802,9.86639789,153.0,152.96,9.86639789]
[1750137401006,9.86639789,153.0,152.96,18.64964886]
[1750137401208,9.86639789,153.0,152.95,18.64964886]
[1750137401209,36.96639789,153.0,152.95,18.64964886]
[1750137401407,36.96639789,153.0,152.95,54.51604675]
[1750137401806,9.86639789,152.99,152.95,54.51604675]
[1750137402025,27.1,153.0,152.95,54.51604675]
[1750137402226,9.86639789,152.99,152.95,35.86639789]
[1750137402429,9.86639789,152.99,152.95,26.0]
[1750137402631,9.86639789,152.97,152.92,35.05529217]
[1750137402929,33.63620188,153.0,152.92,35.05529217]
[1750137402930,9.86639789,152.96,152.92,25.1889205]
[1750137403101,9.86639789,152.96,152.92,51.1889205]
[1750137403301,33.63620188,153.0,152.92,51.1889205]
[1750137403542,9.86639789,152.97,152.92,61.05531839]
[1750137403745,36.94639789,152.96,152.9,8.2546]
[1750137403909,36.94639789,152.96,152.91,28.51604675]
[1750137404228,36.94639789,152.96,152.91,61.05557161]
[1750137404443,36.94639789,152.96,152.91,35.05557161]
[1750137404728,36.94639789,152.96,152.91,51.18917372]
[1750137404729,27.08,152.96,152.91,51.18917372]
[1750137404928,27.08,152.96,152.91,44.64964886]
[1750137405131,36.94639789,152.96,152.91,54.51604675]
[1750137405334,27.08,152.96,152.92,9.86639789]
[1750137405517,33.61765771,152.96,152.91,26.0]
[1750137405724,33.61765771,152.96,152.91,35.86639789]
[1750137406034,33.61765771,152.96,152.91,26.0]
[1750137406242,27.08,152.96,152.91,32.53974577]
[1750137406537,33.6176895,152.96,152.89,0.14216157]
[1750137406725,9.86639789,152.95,152.91,9.86639789]
[1750137407315,33.6176861,152.96,152.91,9.86639789]
[1750137407618,9.86639789,152.95,152.9,26.0]
[1750137407825,36.94639789,152.96,152.91,9.86639789]
[1750137408024,27.08,152.96,152.91,9.86639789]
[1750137408227,27.08,152.96,152.9,26.0]
[1750137408431,27.08,152.96,152.93,9.86639789]
[1750137408927,34.1984,153.01,152.93,9.86639789]
[1750137408928,1.6403,153.01,152.95,9.86639789]
[1750137409228,27.12,153.01,152.96,19.07613357]
[1750137409431,36.98639789,153.01,152.97,9.86639789]
[1750137409734,9.86639789,153.0,152.96,9.86639789]
[1750137409956,9.86639789,153.0,152.95,26.0]
[1750137410130,36.98639789,153.01,152.96,9.86639789]
[1750137410326,43.52196619,153.01,152.95,32.53797179]
[1750137410522,33.6555683,153.01,152.94,9.86639789]
[1750137410714,9.86639789,153.0,152.95,9.86639789]
[1750137410915,9.86639789,152.99,152.95,9.86639789]
[1750137411644,16.4027975,152.99,152.95,9.86639789]
[1750137412140,16.4027975,152.99,152.93,34.0289]
[1750137412445,16.4027975,152.99,152.95,9.86639789]
[1750137412747,16.40241329,153.0,152.93,40.56769674]
[1750137412945,9.86639789,153.0,152.93,40.56769674]
[1750137413156,33.65562626,153.01,152.97,9.86639789]
[1750137413359,5.94,153.02,152.98,9.86639789]
[1750137413531,18.407803,153.03,152.96,26.0]
[1750137413532,8.54140511,153.03,153.01,9.86639789]
[1750137413718,8.54140511,153.03,153.0,6.53577815]
[1750137413719,8.54140511,153.03,153.02,9.86639789]
[1750137413925,8.54140511,153.03,153.01,9.86639789]
[1750137414143,8.54140511,153.03,153.0,26.0]
[1750137414144,8.54140511,153.03,153.02,9.86639789]
[1750137416475,8.54140511,153.03,153.01,6.53535516]
[1750137416676,8.54140511,153.03,153.02,54.94253146]
[1750137417944,8.54140511,153.03,153.02,35.86639789]
[1750137418159,8.54140511,153.03,153.02,54.94253146]
[1750137418555,8.54140511,153.03,153.02,35.47762491]
[1750137418947,5.98,153.07,153.02,35.47762491]
[1750137419151,5.98,153.07,153.05,9.86639789]
[1750137420671,5.98,153.07,153.04,9.86639789]
[1750137421367,5.98,153.07,153.05,9.86639789]
[1750137421675,5.98,153.07,153.04,9.86639789]
[1750137423272,12.51299141,153.07,153.03,35.86639789]
[1750137423503,27.5557,153.12,153.06,9.86639789]
[1750137423645,27.5557,153.12,153.03,26.0]
[1750137423646,27.12,153.11,153.09,9.86639789]
[1750137423969,27.12,153.11,153.05,0.14216157]
[1750137424155,36.98639789,153.11,153.06,9.86639789]
[1750137424553,27.12,153.1,153.06,9.86639789]
[1750137424754,27.12,153.1,153.07,9.86639789]
[1750137425363,17.95315091,153.12,153.08,9.86639789]
[1750137425566,27.16,153.11,153.08,9.86639789]
[1750137426775,27.16,153.11,153.09,9.86639789]
[1750137427164,27.16,153.11,153.08,9.86639789]
[1750137427851,27.16,153.11,153.04,19.07613357]
[1750137428051,27.16,153.11,153.07,9.86639789]
[1750137428361,27.16,153.11,153.09,9.86639789]
[1750137428964,5.98,153.13,153.1,9.86639789]
[1750137429159,27.14,153.11,153.1,9.86639789]
[1750137429579,27.14,153.11,153.08,6.53221695]
[1750137429781,33.12,153.13,153.1,9.86639789]
[1750137429956,33.12,153.13,153.11,9.86639789]
[1750137430154,5.98,153.13,153.11,9.86639789]
[1750137430358,33.1,153.13,153.11,9.86639789]
[1750137430976,46.55328295,153.16,153.12,9.86639789]
[1750137430977,9.14128506,153.16,153.12,9.86639789]
[1750137431185,9.14128506,153.16,153.15,9.86639789]
[1750137431557,5.98,153.18,153.15,28.94253146]
[1750137431758,152.49719364,153.26,153.2,26.0]
[1750137431759,9.92213139,153.26,153.2,26.0]
[1750137431983,6.52493775,153.26,153.24,9.86639789]
[1750137432168,25.367938,153.28,153.25,9.86639789]
[1750137432169,9.05704722,153.28,153.25,9.86639789]
[1750137432354,25.44756544,153.28,153.19,0.14216157]
[1750137432550,9.86639789,153.27,153.23,9.86639789]
[1750137432751,9.05704722,153.28,153.24,9.86639789]
[1750137433255,25.44760966,153.28,153.24,9.86639789]
[1750137433665,15.58121177,153.28,153.24,9.86639789]
[1750137433873,9.05704722,153.28,153.25,9.86639789]
[1750137434259,9.05704722,153.28,153.26,9.86639789]
[1750137434453,9.05704722,153.28,153.27,9.86639789]
[1750137434653,0.0495462,153.3,153.29,26.0]
[1750137434872,0.0495462,153.3,153.29,54.94253146]
[1750137435071,0.0495462,153.3,153.29,61.46611421]
[1750137435891,0.0495462,153.3,153.29,54.94253146]
[1750137436069,0.0495462,153.3,153.29,61.46611421]
[1750137438289,0.0495462,153.3,153.29,54.94253146]
[1750137439573,0.0495462,153.3,153.29,45.07613357]
[1750137439781,0.0495462,153.3,153.29,54.94253146]
[1750137440091,0.0495462,153.3,153.23,6.1498]
[1750137440315,9.86639789,153.29,153.25,9.86639789]
[1750137440503,9.91594409,153.3,153.26,9.86639789]
[1750137440866,9.91594409,153.3,153.24,18.933972]
[1750137440867,9.91594409,153.3,153.25,10.2928826]
[1750137441369,9.91594409,153.3,153.26,9.86639789]
[1750137441568,0.0495462,153.3,153.25,0.42648471]
[1750137441785,0.0495462,153.3,153.27,9.86639789]
[1750137442268,6.5727034,153.3,153.27,9.86639789]
[1750137442463,0.0495462,153.3,153.25,0.42648471]
[1750137442674,0.0495462,153.3,153.26,9.86639789]
[1750137443182,0.0495462,153.3,153.27,9.86639789]
[1750137443898,0.0495462,153.3,153.29,35.86639789]
[1750137444105,0.0495462,153.3,153.29,9.86639789]
[1750137444998,0.0495462,153.3,153.29,28.94253146]
[1750137445900,0.0495462,153.3,153.29,19.07613357]
[1750137446092,0.0495462,153.3,153.29,9.86639789]
[1750137446398,0.0495462,153.3,153.27,19.07613357]
[1750137446700,0.0495462,153.3,153.29,9.86639789]
[1750137447080,0.0495462,153.3,153.29,10.2928826]
[1750137447878,0.0495462,153.3,153.29,9.86639789]
[1750137448084,0.0495462,153.3,153.29,54.94253146]
[1750137448302,0.0495462,153.3,153.29,61.46611421]
[1750137448801,0.0495462,153.3,153.29,51.59971632]
[1750137448981,0.0495462,153.3,153.29,61.46611421]
[1750137449299,0.0495462,153.3,153.29,9.86639789]
[1750137449482,0.0495462,153.3,153.29,10.2928826]
[1750137450303,0.0495462,153.3,153.29,16.81646535]
[1750137450499,0.0495462,153.3,153.29,10.2928826]
[1750137451502,0.0495462,153.3,153.29,16.81646535]
[1750137452296,21.51329402,153.43,153.32,26.0]
[1750137452484,21.51329402,153.43,153.4,9.86639789]
[1750137452485,5.98,153.43,153.4,9.86639789]
[1750137452685,5.98,153.43,153.41,9.86639789]
[1750137452913,5.98,153.43,153.36,54.80036989]
[1750137452914,5.98,153.43,153.4,9.86639789]
[1750137453422,5.98,153.43,153.41,9.86639789]
[1750137453624,5.98,153.43,153.42,9.86639789]
[1750137453989,27.16,153.47,153.42,9.86639789]
[1750137454317,27.16,153.47,153.37,26.42648471]
[1750137454318,16.38360331,153.44,153.37,26.42648471]
[1750137454488,9.86639789,153.41,153.37,35.86639789]
[1750137454686,6.51720542,153.44,153.35,0.28432314]
[1750137454687,27.16,153.42,153.35,0.28432314]
[1750137454892,9.86639789,153.36,153.3,18.64964886]
[1750137455096,9.86639789,153.36,153.32,35.86639789]
[1750137455335,27.18,153.37,153.33,9.86639789]
[1750137455511,27.18,153.37,153.33,28.51604675]
[1750137455888,27.18,153.37,153.33,9.86639789]
[1750137455889,43.56667197,153.37,153.33,9.86639789]
[1750137456100,27.18,153.37,153.34,9.86639789]
[1750137456311,27.18,153.37,153.32,26.0]
[1750137456312,33.7002193,153.37,153.32,26.0]
[1750137456497,33.7002193,153.37,153.33,9.86639789]
[1750137456800,43.56661719,153.37,153.33,9.86639789]
[1750137457893,27.18,153.37,153.34,9.86639789]
[1750137458109,33.70020427,153.37,153.34,9.86639789]
[1750137458296,33.70020427,153.37,153.33,28.51604675]
[1750137460405,33.70020427,153.37,153.34,9.86639789]
[1750137460902,43.56660216,153.37,153.33,28.51604675]
[1750137461308,43.56660216,153.37,153.33,9.86639789]
[1750137461511,9.86639789,153.36,153.32,26.0]
[1750137461809,9.86639789,153.36,153.32,35.86639789]
[1750137462217,43.56660216,153.37,153.33,9.86639789]
[1750137462603,33.70020427,153.37,153.33,9.86639789]
[1750137462804,43.56660216,153.37,153.33,9.86639789]
[1750137463496,43.56660216,153.37,153.32,35.86639789]
[1750137463697,43.56660216,153.37,153.33,9.86639789]
[1750137463902,33.70020427,153.37,153.33,9.86639789]
[1750137465089,43.56660216,153.37,153.32,35.86639789]
[1750137465295,43.56660216,153.37,153.32,9.86639789]
[1750137467931,27.1,153.4,153.36,9.86639789]
[1750137468132,27.1,153.4,153.37,9.86639789]
[1750137468426,1.5884,153.46,153.39,9.86639789]
[1750137468600,5.98,153.47,153.4,0.28432314]
[1750137468933,37.00639789,153.46,153.41,9.86639789]
[1750137469530,6.51678071,153.45,153.41,9.86639789]
[1750137469830,6.51678071,153.45,153.42,9.86639789]
[1750137470364,6.51678071,153.45,153.41,9.86639789]
[1750137470634,16.3831786,153.45,153.41,9.86639789]
[1750137471137,5.98,153.47,153.43,9.86639789]
[1750137471138,12.49632131,153.47,153.43,9.86639789]
[1750137471299,39.63632131,153.47,153.43,9.86639789]
[1750137472227,33.12,153.47,153.44,9.86639789]
[1750137472598,33.12,153.47,153.45,9.86639789]
[1750137472800,39.63611057,153.47,153.42,26.0]
[1750137473027,12.49611057,153.47,153.43,9.86639789]
[1750137473511,5.98,153.47,153.43,9.86639789]
[1750137473833,33.1,153.47,153.45,9.86639789]
[1750137474141,26.0,153.52,153.45,9.86639789]
[1750137474142,27.12,153.51,153.46,9.86639789]
[1750137474330,27.12,153.51,153.48,9.86639789]
[1750137475134,27.14,153.51,153.47,9.86639789]
[1750137475519,6.0,153.52,153.49,9.86639789]
[1750137477312,6.0,153.52,153.48,0.42648471]
[1750137477519,6.0,153.52,153.49,9.86639789]
[1750137478229,12.513839,153.52,153.49,9.86639789]
[1750137478430,6.0,153.52,153.51,9.86639789]
[1750137478757,6.0,153.57,153.51,9.86639789]
[1750137478914,6.0,153.57,153.55,9.86639789]
[1750137479252,33.12,153.57,153.55,9.86639789]
[1750137479414,14.60580055,153.61,153.56,9.86639789]
[1750137479613,14.60580055,153.61,153.54,6.51294151]
[1750137479614,27.12,153.6,153.57,9.86639789]
[1750137479910,27.12,153.6,153.54,6.51294151]
[1750137479911,9.86639789,153.6,153.56,9.86639789]
[1750137480116,27.12,153.6,153.56,9.86639789]
[1750137480313,36.98639789,153.6,153.53,18.79181043]
[1750137480517,9.86639789,153.54,153.51,26.0]
[1750137480718,9.86639789,153.52,153.47,9.86639789]
[1750137480945,9.86639789,153.48,153.44,9.86639789]
[1750137481235,43.50222757,153.48,153.43,9.86639789]
[1750137481446,9.86639789,153.47,153.42,15.92599789]
[1750137481637,9.86639789,153.44,153.37,6.0544]
[1750137481841,9.86639789,153.43,153.38,9.86639789]
[1750137482036,27.12,153.44,153.42,9.86639789]
[1750137482234,9.86639789,153.43,153.38,9.86639789]
[1750137482627,27.12,153.44,153.38,9.86639789]
[1750137482831,36.98639789,153.44,153.39,9.86639789]
[1750137483240,16.38402807,153.43,153.39,9.86639789]
[1750137483528,16.38402807,153.43,153.38,26.0]
[1750137483742,9.86639789,153.42,153.38,35.86639789]
[1750137483949,9.86639789,153.42,153.38,9.86639789]
[1750137484128,16.38402807,153.43,153.38,9.86639789]
[1750137484471,9.86639789,153.39,153.35,9.86639789]
[1750137484758,27.14,153.39,153.35,9.86639789]
[1750137484945,37.00639789,153.39,153.34,26.0]
[1750137485247,6.51975485,153.38,153.34,9.86639789]
[1750137485453,16.38615274,153.38,153.34,9.86639789]
[1750137485653,16.38615274,153.38,153.33,32.1861]
[1750137485654,16.38615274,153.38,153.33,42.05249789]
[1750137485858,16.38615274,153.38,153.31,9.86639789]
[1750137485859,9.86639789,153.35,153.31,9.86639789]
[1750137486056,27.16,153.35,153.31,9.86639789]
[1750137486223,27.16,153.35,153.31,35.86639789]
[1750137486429,27.16,153.35,153.32,9.86639789]
[1750137486650,27.16,153.35,153.33,9.86639789]
[1750137487236,22.29630331,153.41,153.34,35.86639789]
[1750137487237,27.16,153.39,153.34,35.86639789]
[1750137487566,27.16,153.39,153.35,9.86639789]
[1750137487866,37.02639789,153.39,153.35,9.86639789]
[1750137488949,43.54581294,153.39,153.34,35.86639789]
[1750137489179,42.29334137,153.44,153.37,9.86639789]
[1750137489180,6.51763018,153.43,153.37,9.86639789]
[1750137489393,27.18,153.42,153.35,9.86639789]
[1750137490045,9.86639789,153.41,153.36,9.86639789]
[1750137490245,9.86639789,153.41,153.35,0.42648471]
[1750137490448,9.86639789,153.41,153.36,9.86639789]
[1750137490681,9.86639789,153.41,153.34,32.80568341]
[1750137490682,9.86639789,153.41,153.37,9.86639789]
[1750137490856,9.86639789,153.4,153.36,9.86639789]
[1750137491054,9.86639789,153.4,153.35,10.2928826]
[1750137492344,9.86639789,153.39,153.36,26.0]
[1750137492745,6.5189412,153.4,153.36,26.0]
[1750137492746,16.38533909,153.4,153.36,26.0]
[1750137493277,6.5189412,153.4,153.36,26.0]
[1750137495477,16.38533909,153.4,153.36,26.0]
[1750137495877,16.38533909,153.4,153.35,10.2928826]
[1750137496066,27.18,153.42,153.35,35.86639789]
[1750137496067,16.38487778,153.41,153.35,35.86639789]
[1750137497576,6.51847989,153.41,153.34,9.86639789]
[1750137497778,9.86639789,153.37,153.31,18.64964886]
[1750137497963,9.86639789,153.36,153.32,26.0]
[1750137498383,27.12,153.37,153.33,9.86639789]
[1750137498583,33.64022761,153.37,153.32,26.0]
[1750137498759,33.64022761,153.37,153.34,9.86639789]
[1750137499082,33.64022761,153.37,153.33,9.86639789]
[1750137499470,33.64022761,153.37,153.32,26.0]
[1750137499471,43.5066255,153.37,153.32,26.0]
[1750137499670,9.86639789,153.36,153.33,26.0]
[1750137500265,16.38735873,153.36,153.33,26.0]
[1750137500991,9.86639789,153.34,153.29,9.86639789]
[1750137501160,6.52096084,153.36,153.27,9.86639789]
[1750137501161,9.86639789,153.32,153.27,9.86639789]
[1750137501359,27.14,153.33,153.29,9.86639789]
[1750137501603,27.14,153.33,153.28,26.0]
[1750137501894,27.14,153.33,153.32,9.86639789]
[1750137502059,9.86639789,153.36,153.32,9.86639789]
[1750137502280,6.52103032,153.35,153.31,10.2928826]
[1750137502461,6.52103032,153.35,153.3,26.28432314]
[1750137502462,16.38742821,153.35,153.3,35.86639789]
[1750137503185,16.38742821,153.35,153.31,9.86639789]
[1750137503489,9.86639789,153.32,153.28,35.86639789]
[1750137503682,37.00639789,153.33,153.28,35.86639789]
[1750137504072,37.00639789,153.33,153.3,26.0]
[1750137504277,43.52847345,153.33,153.28,9.86639789]
[1750137504572,43.52847345,153.33,153.28,39.11892995]
[1750137504786,9.86639789,153.32,153.28,3.25253206]
[1750137504974,33.66207556,153.33,153.27,26.0]
[1750137504975,9.86639789,153.31,153.27,26.0]
[1750137505282,9.86639789,153.31,153.26,9.86639789]
[1750137505283,9.86639789,153.3,153.26,9.86639789]
[1750137505592,9.86639789,153.3,153.26,35.86639789]
[1750137506163,9.86639789,153.31,153.26,35.86639789]
[1750137506684,16.38923457,153.31,153.26,35.86639789]
[1750137506869,16.38923457,153.31,153.26,42.39119864]
[1750137507184,16.38923457,153.31,153.27,9.86639789]
[1750137508070,9.86639789,153.31,153.27,9.86639789]
[1750137509390,16.38916832,153.31,153.26,45.60857516]
[1750137509566,16.38916832,153.31,153.27,9.86639789]
[1750137509567,9.86639789,153.31,153.27,9.86639789]
[1750137510069,22.3888503,153.32,153.27,9.86639789]
[1750137510271,15.86639789,153.32,153.27,9.86639789]
[1750137510494,9.86639789,153.31,153.27,9.86639789]
[1750137510784,12.52237023,153.32,153.25,10.2928826]
[1750137510987,9.86639789,153.29,153.25,10.2928826]
[1750137511178,36.96639789,153.29,153.25,10.2928826]
[1750137511576,27.1,153.29,153.25,10.2928826]
[1750137512197,9.86639789,153.28,153.25,3.25238604]
[1750137512363,36.96639789,153.29,153.25,9.86639789]
[1750137512568,27.1,153.29,153.25,9.86639789]
[1750137512792,27.1,153.29,153.25,0.42648471]
[1750137512969,27.1,153.29,153.27,9.86639789]
[1750137513165,15.86639789,153.32,153.28,9.86639789]
[1750137513400,6.0,153.32,153.29,9.86639789]
[1750137513574,6.0,153.32,153.27,32.52438232]
[1750137513575,33.18,153.32,153.3,9.86639789]
[1750137513891,10.0,153.41,153.28,0.28432314]
[1750137513892,1.5246,153.41,153.34,26.0]
[1750137514093,1.5246,153.41,153.37,9.86639789]
[1750137514094,27.2,153.41,153.37,9.86639789]
[1750137514283,27.2,153.4,153.37,9.86639789]
[1750137515088,9.86639789,153.39,153.34,35.86639789]
[1750137515284,27.2,153.38,153.35,9.86639789]
[1750137515485,37.06639789,153.38,153.34,35.86639789]
[1750137515800,9.86639789,153.37,153.34,26.0]
[1750137516097,27.2,153.38,153.35,9.86639789]
[1750137516972,33.71976786,153.38,153.35,9.86639789]
[1750137520295,33.71976786,153.38,153.34,26.0]
[1750137520497,43.58616575,153.38,153.33,9.86639789]
[1750137520701,43.58616575,153.38,153.34,9.86639789]
[1750137521381,16.38616575,153.38,153.34,9.86639789]
[1750137521585,27.14,153.37,153.34,9.86639789]
[1750137521784,27.14,153.37,153.35,9.86639789]
[1750137522002,22.2955627,153.42,153.36,9.86639789]
[1750137522003,27.16,153.38,153.36,9.86639789]
[1750137522201,37.02639789,153.38,153.34,26.0]
[1750137522508,37.02639789,153.38,153.33,9.86639789]
[1750137522509,9.86639789,153.37,153.33,9.86639789]
[1750137524098,16.38667347,153.37,153.33,9.86639789]
[1750137524476,16.38667347,153.37,153.32,32.52230032]
[1750137524684,16.38667347,153.37,153.33,35.86639789]
[1750137525001,43.54626656,153.38,153.33,35.86639789]
[1750137525301,43.54626656,153.38,153.34,9.86639789]
[1750137527208,33.67986867,153.38,153.34,9.86639789]
[1750137527404,27.16,153.38,153.35,9.86639789]
[1750137527785,9.86639789,153.4,153.36,9.86639789]
[1750137528114,15.86639789,153.42,153.38,9.86639789]
[1750137528406,27.1,153.41,153.38,9.86639789]
[1750137528890,36.96639789,153.41,153.37,9.86639789]
[1750137529095,9.86639789,153.39,153.35,10.00855946]
[1750137529397,27.1,153.38,153.35,10.00855946]
[1750137530204,27.1,153.38,153.35,16.52950332]
[1750137530511,27.1,153.38,153.36,9.86639789]
[1750137532683,27.1,153.38,153.33,44.64964886]
[1750137532684,9.86639789,153.37,153.33,35.86639789]
[1750137533510,33.61979766,153.38,153.33,35.86639789]
[1750137533511,43.48619555,153.38,153.33,35.86639789]
[1750137533987,9.86639789,153.4,153.35,9.86639789]
[1750137534313,27.08,153.39,153.36,9.86639789]
[1750137534791,9.86639789,153.41,153.37,9.86639789]
[1750137534995,9.86639789,153.41,153.34,19.07613357]
[1750137534996,22.3847658,153.42,153.36,26.0]
[1750137535185,36.94639789,153.41,153.36,35.86639789]
[1750137535599,9.86639789,153.41,153.36,35.86639789]
[1750137535786,27.08,153.4,153.36,35.86639789]
[1750137536707,43.46541677,153.4,153.35,9.86639789]
[1750137536918,9.86639789,153.38,153.33,32.52173799]
[1750137537208,27.08,153.37,153.34,9.86639789]
[1750137539388,27.08,153.37,153.34,16.38784881]
[1750137539589,27.08,153.37,153.35,9.86639789]
[1750137539810,27.08,153.37,153.34,16.38784881]
[1750137541604,27.08,153.37,153.34,6.52145092]
[1750137541807,27.08,153.37,153.35,9.86639789]
[1750137542417,27.08,153.37,153.31,42.38903041]
[1750137542418,9.86639789,153.36,153.31,42.38903041]
[1750137542720,9.86639789,153.35,153.31,42.38903041]
[1750137542904,27.04,153.34,153.31,42.38903041]
[1750137543102,27.04,153.34,153.3,9.86639789]
[1750137543408,27.04,153.34,153.33,9.86639789]
[1750137544335,22.36588421,153.39,153.33,9.86639789]
[1750137544628,27.06,153.37,153.34,9.86639789]
[1750137544832,27.06,153.37,153.35,9.86639789]
[1750137545011,27.06,153.37,153.34,9.86639789]
[1750137547008,27.06,153.37,153.35,9.86639789]
[1750137547736,22.36588421,153.39,153.35,9.86639789]
[1750137548025,27.04,153.37,153.35,9.86639789]
[1750137548536,27.04,153.37,153.33,6.52173297]
[1750137548706,27.04,153.37,153.35,9.86639789]
[1750137549322,27.04,153.37,153.32,26.0]
[1750137549323,36.90639789,153.37,153.32,26.0]
[1750137549526,36.90639789,153.37,153.33,9.86639789]
[1750137549733,36.90639789,153.37,153.32,42.38868817]
[1750137550037,9.86639789,153.36,153.32,16.38868817]
[1750137550199,9.86639789,153.36,153.32,6.52229028]
[1750137550399,43.42658197,153.37,153.32,16.38868817]
[1750137550642,36.90639789,153.37,153.32,16.38868817]
[1750137551128,27.04,153.37,153.33,9.86639789]
[1750137551829,5.98,153.39,153.35,16.38703572]
[1750137552031,27.02,153.38,153.35,16.38703572]
[1750137552343,36.88639789,153.38,153.34,6.52138868]
[1750137553018,36.88639789,153.37,153.33,6.52183406]
[1750137553198,36.88639789,153.37,153.33,16.38823195]
[1750137553199,27.02,153.37,153.33,16.38823195]
[1750137554824,27.02,153.37,153.33,13.07227742]
[1750137557004,33.57044336,153.37,153.32,6.94872428]
[1750137557205,33.57044336,153.37,153.32,13.07268293]
[1750137557608,33.57044336,153.37,153.33,6.55044336]
[1750137557609,27.02,153.37,153.33,6.55044336]
[1750137557817,5.98,153.39,153.36,6.55044336]
[1750137558025,32.98,153.39,153.36,6.55044336]